bitfinex-derivatives/quotes_SOLF0:USTF0_20241005
["timestamp","ask_amount","ask_price","bid_price","bid_amount"]
[1728122656436,10.61,144.26,144.23,3.59142]
[1728122657238,10.61,144.28,144.23,10.73502]
[1728122658345,10.61,144.28,144.23,0.12502]
[1728122658546,10.61,144.28,144.25,3.4658]
[1728122659241,10.61,144.28,144.26,3.4655]
[1728122659447,10.61,144.28,144.23,10.73502]
[1728122659943,10.61,144.28,144.26,3.4656]
[1728122660445,10.61,144.28,144.23,10.73502]
[1728122660446,2.6792,144.31,144.24,10.61]
[1728122660646,10.61,144.3,144.29,3.465]
[1728122660847,1.3761,144.31,144.29,3.465]
[1728122661146,10.61,144.3,144.29,3.465]
[1728122661342,91.82134014,144.32,144.31,3.4645]
[1728122661543,81.21134014,144.32,144.31,3.4645]
[1728122663054,10.73502,144.35,144.29,10.61]
[1728122663546,10.73502,144.35,144.3,3.4646]
[1728122663852,10.73502,144.35,144.29,10.61]
[1728122664350,10.73502,144.35,144.32,3.4641]
[1728122667248,10.73502,144.35,144.33,3.464]
[1728122668850,10.73502,144.35,144.3,3.4646]
[1728122669145,10.73502,144.35,144.29,10.61]
[1728122670454,10.73502,144.35,144.33,3.4639]
[1728122672656,0.12502,144.35,144.33,3.4639]
[1728122672850,10.73502,144.35,144.33,3.4639]
[1728122674358,10.73502,144.35,144.34,3.4638]
[1728122676659,10.73502,144.35,144.33,3.464]
[1728122680653,0.12502,144.35,144.33,3.464]
[1728122683356,10.61,144.34,144.31,4.74]
[1728122683959,10.61,144.34,144.32,3.4642]
[1728122692360,0.12502,144.35,144.34,3.4638]
[1728122692566,0.12502,144.35,144.34,14.0738]
[1728122692866,0.12502,144.35,144.34,18.8138]
[1728122694363,0.12502,144.41,144.34,15.35]
[1728122694667,0.12502,144.41,144.37,10.61]
[1728122694860,0.12502,144.41,144.37,15.35]
[1728122695369,0.12502,144.41,144.38,10.61]
[1728122696267,0.12502,144.41,144.4,3.4624]
[1728122698169,0.12502,144.41,144.37,4.74]
[1728122698369,10.73502,144.41,144.37,4.74]
[1728122699069,10.73502,144.41,144.38,3.4628]
[1728122699668,10.61,144.39,144.37,8.203]
[1728122700172,10.61,144.39,144.37,4.74]
[1728122701374,10.61,144.39,144.3,1.2932]
[1728122701579,10.61,144.35,144.31,5.91376711]
[1728122701776,10.61,144.35,144.3,13.2937]
[1728122701777,10.61,144.35,144.3,2.6837]
[1728122701976,10.61,144.34,144.31,8.2043]
[1728122702477,10.61,144.34,144.32,3.4643]
[1728122703080,10.61,144.36,144.34,3.4638]
[1728122704480,10.61,144.37,144.34,3.4638]
[1728122706681,10.61,144.37,144.35,3.4635]
[1728122706883,2.8311,144.4,144.35,3.4635]
[1728122707075,0.12502,144.41,144.36,10.61]
[1728122707276,10.73502,144.41,144.37,3.4631]
[1728122707484,10.73502,144.41,144.34,4.74]
[1728122707485,10.73502,144.41,144.36,10.61]
[1728122707673,10.73502,144.41,144.37,15.35]
[1728122707870,10.73502,144.41,144.39,3.4626]
[1728122710078,10.73502,144.41,144.38,3.4628]
[1728122714892,10.61,144.39,144.35,4.74]
[1728122715788,10.61,144.39,144.36,3.4633]
[1728122724884,10.61,144.37,144.35,4.74]
[1728122725090,10.61,144.37,144.32,10.61]
[1728122725282,10.61,144.36,144.33,4.74]
[1728122726088,10.61,144.36,144.33,8.2039]
[1728122728290,10.61,144.36,144.33,3.4639]
[1728122732201,10.61,144.35,144.32,4.74]
[1728122734001,10.61,144.35,144.32,3.4643]
[1728122735688,10.61,144.36,144.31,15.35]
[1728122735894,10.61,144.37,144.32,10.61]
[1728122736498,14.0731,144.37,144.33,3.4639]
[1728122737097,10.61,144.36,144.33,3.4639]
[1728122737796,14.0735,144.36,144.32,3.4642]
[1728122739100,10.61,144.34,144.29,0.12502]
[1728122739298,14.0739,144.34,144.3,3.4646]
[1728122739499,10.61,144.32,144.29,4.86502]
[1728122740301,14.0743,144.32,144.29,4.86502]
[1728122740495,10.61,144.32,144.29,4.86502]
[1728122740700,10.61,144.32,144.29,8.33002]
[1728122741303,10.61,144.32,144.29,3.59002]
[1728122742195,10.61,144.32,144.29,0.12502]
[1728122742394,14.0743,144.32,144.29,0.12502]
[1728122744500,10.61,144.32,144.29,0.12502]
[1728122745201,14.0744,144.32,144.29,0.12502]
[1728122745404,10.61,144.31,144.29,0.12502]
[1728122747206,14.0746,144.31,144.29,0.12502]
[1728122753912,10.61,144.3,144.29,0.12502]
[1728122754109,14.0748,144.3,144.29,0.12502]
[1728122755811,3.4654,144.28,144.25,3.4659]
[1728122756111,14.0754,144.28,144.25,3.4659]
[1728122758014,14.0754,144.28,144.23,0.12502]
[1728122758320,14.0757,144.27,144.23,0.12502]
[1728122758615,14.0757,144.27,144.23,3.59142]
[1728122759116,3.4659,144.26,144.23,3.59142]
[1728122759414,14.0759,144.26,144.23,3.59142]
[1728122759613,14.0759,144.26,144.23,0.12502]
[1728122760230,10.61,144.26,144.23,0.12502]
[1728122760407,4.74,144.32,144.24,4.74]
[1728122760602,10.61,144.29,144.23,0.12502]
[1728122760808,14.0752,144.29,144.25,3.4658]
[1728122761007,14.0752,144.29,144.24,10.61]
[1728122761417,14.0752,144.29,144.24,14.076]
[1728122761809,14.0752,144.29,144.24,10.61]
[1728122762220,14.0752,144.29,144.23,4.86502]
[1728122762519,10.61,144.27,144.23,4.86502]
[1728122763607,10.61,144.27,144.23,0.12502]
[1728122764114,14.0756,144.27,144.23,3.59132]
[1728122766213,10.61,144.26,144.23,3.59132]
[1728122766418,14.0757,144.26,144.23,3.59132]
[1728122767409,10.61,144.26,144.23,3.59132]
[1728122769020,14.0757,144.26,144.23,0.12502]
[1728122770314,10.61,144.26,144.23,0.12502]
[1728122770521,10.61,144.26,144.23,3.59142]
[1728122772618,7.5276,144.28,144.24,3.4661]
[1728122772821,10.61,144.26,144.24,3.4661]
[1728122773012,10.61,144.26,144.23,0.12502]
[1728122773418,10.61,144.29,144.24,10.61]
[1728122773723,10.61,144.29,144.25,10.61]
[1728122773916,3.4647,144.31,144.28,3.4653]
[1728122774115,3.4647,144.31,144.25,10.61]
[1728122774116,10.61,144.3,144.25,10.61]
[1728122775113,10.61,144.3,144.28,3.4652]
[1728122776121,10.61,144.3,144.29,3.465]
[1728122776624,10.61,144.31,144.27,4.74]
[1728122776825,2.8405,144.34,144.29,10.61]
[1728122777220,1.4354,144.34,144.31,3.4644]
[1728122779322,1.4354,144.34,144.3,15.35]
[1728122779526,1.4354,144.34,144.32,3.4641]
[1728122779722,1.4354,144.34,144.3,15.35]
[1728122779915,10.73502,144.35,144.3,15.35]
[1728122780320,0.12502,144.35,144.34,3.4638]
[1728122785327,10.73502,144.35,144.33,4.74]
[1728122789735,10.73502,144.35,144.33,8.204]
[1728122792036,0.12502,144.35,144.33,8.204]
[1728122795032,0.12502,144.35,144.33,4.74]
[1728122795237,0.12502,144.35,144.34,3.4638]
[1728122812348,0.12502,144.35,144.34,14.0738]
[1728122821151,0.12502,144.35,144.34,3.4638]
[1728122821353,0.12502,144.35,144.32,10.3912]
[1728122821560,0.12502,144.35,144.33,4.74]
[1728122822247,0.12502,144.35,144.33,8.2041]
[1728122827065,0.12502,144.35,144.33,4.74]
[1728122827360,0.12502,144.35,144.34,3.4638]
[1728122829275,0.12502,144.35,144.34,14.0738]
[1728122831376,0.12502,144.35,144.34,17.5214923]
[1728122834780,0.12502,144.41,144.36,3.4633]
[1728122835081,0.12502,144.41,144.37,4.74]
[1728122835270,10.61,144.4,144.37,4.74]
[1728122835682,10.61,144.4,144.37,8.203]
[1728122836082,10.61,144.4,144.37,4.74]
[1728122836782,10.61,144.4,144.37,15.35]
[1728122837292,0.12502,144.41,144.38,3.4628]
[1728122838186,0.12502,144.41,144.39,3.4626]
[1728122838885,0.12502,144.41,144.37,4.74]
[1728122839088,0.12502,144.41,144.4,3.4624]
[1728122839292,0.12502,144.41,144.4,8.2024]
[1728122842086,0.12502,144.41,144.4,18.8124]
[1728122846197,0.12502,144.41,144.4,8.2024]
[1728122846495,0.12502,144.41,144.4,18.8124]
[1728122870006,2.91122,144.47,144.43,3.4615]
[1728122870210,2.91122,144.47,144.44,15.35]
[1728122870809,0.12502,144.47,144.46,14.0709]
[1728122872510,0.12502,144.47,144.46,3.4609]
[1728122872712,0.12502,144.47,144.46,14.0709]
[1728122879121,2.6977,144.52,144.48,3.4603]
[1728122879316,2.6977,144.52,144.5,10.61]
[1728122881418,1.3258,144.52,144.5,10.61]
[1728122881618,1.3258,144.52,144.5,14.0699]
[1728122882023,1.3258,144.52,144.51,10.61]
[1728122883823,0.12502,144.53,144.51,10.61]
[1728122884025,0.12502,144.53,144.52,18.8095]
[1728122886623,0.12502,144.53,144.52,14.0695]
[1728122886924,0.12502,144.53,144.52,18.8095]
[1728122887516,0.12502,144.53,144.52,14.0695]
[1728122887720,0.12502,144.53,144.52,18.8095]
[1728122888425,0.12502,144.53,144.52,3.4595]
[1728122888629,0.12502,144.53,144.52,15.35]
[1728122889016,0.12502,144.53,144.52,4.74]
[1728122890528,0.12502,144.53,144.52,15.35]
[1728122891432,0.12502,144.53,144.52,18.8095]
[1728122897433,4.8307,144.58,144.54,3.4589]
[1728122897631,4.8307,144.58,144.56,10.61]
[1728122897833,1.3726,144.58,144.56,10.61]
[1728122898227,2.78912,144.59,144.56,10.61]
[1728122898428,1.45652,144.59,144.57,15.35]
[1728122898632,1.45652,144.59,144.57,18.8083]
[1728122900544,1.45652,144.59,144.57,15.35]
[1728122903444,3.4581,144.58,144.57,4.74]
[1728122903750,2.78422,144.59,144.57,4.74]
[1728122904047,6.24222,144.59,144.57,4.74]
[1728122916148,1.45652,144.59,144.57,8.1983]
[1728122916445,1.45652,144.59,144.57,4.74]
[1728122916446,0.12502,144.59,144.57,4.74]
[1728122916646,0.12502,144.59,144.58,10.61]
[1728122916953,0.12502,144.59,144.58,14.0681]
[1728122925151,0.12502,144.59,144.58,3.4581]
[1728122925351,0.12502,144.59,144.58,18.8081]
[1728122929358,0.12502,144.59,144.58,8.1981]
[1728122929562,0.12502,144.59,144.57,10.61]
[1728122929765,0.12502,144.59,144.58,4.74]
[1728122930367,0.12502,144.59,144.51,10.41147905]
[1728122930561,3.58302,144.59,144.55,3.4586]
[1728122930762,0.12502,144.59,144.56,4.74]
[1728122931564,0.12502,144.59,144.56,8.1985]
[1728122932069,0.12502,144.59,144.58,10.61]
[1728122945179,0.12502,144.59,144.58,14.0681]
[1728122945576,2.7263,144.68,144.6,3.4576]
[1728122945577,3.58142,144.65,144.6,3.4576]
[1728122945770,3.58142,144.65,144.62,10.61]
[1728122945976,0.12502,144.65,144.62,10.61]
[1728122946178,3.4566,144.64,144.62,10.61]
[1728122946785,3.58152,144.65,144.62,10.61]
[1728122947678,0.12502,144.65,144.57,1.4294]
[1728122947877,10.73502,144.65,144.59,14.0677]
[1728122948983,3.4571,144.63,144.59,14.0677]
[1728122949287,10.73502,144.65,144.59,14.0677]
[1728122949986,4.86502,144.65,144.52,6.927]
[1728122950187,4.86502,144.65,144.53,10.73502]
[1728122950188,10.61,144.57,144.53,10.73502]
[1728122950384,10.61,144.57,144.53,0.12502]
[1728122950898,3.4588,144.56,144.53,0.12502]
[1728122951989,3.4588,144.56,144.53,10.73502]
[1728122952786,3.4588,144.56,144.53,15.47502]
[1728122954187,3.47486342,144.6,144.53,15.47502]
[1728122954389,10.61,144.59,144.53,15.47502]
[1728122954691,13.98344398,144.59,144.53,15.47502]
[1728122955986,3.4586,144.56,144.53,15.47502]
[1728122956188,10.61,144.57,144.53,0.12502]
[1728122957086,3.459,144.55,144.53,0.12502]
[1728122958186,3.459,144.55,144.53,10.73502]
[1728122959792,3.37344398,144.59,144.54,10.61]
[1728122959987,3.4586,144.56,144.54,10.61]
[1728122960187,3.4586,144.56,144.54,15.35]
[1728122966498,3.4588,144.55,144.54,15.35]
[1728122966995,3.4588,144.55,144.54,4.74]
[1728122969593,3.4586,144.56,144.54,4.74]
[1728122970396,3.4586,144.56,144.55,10.61]
[1728122970591,3.4586,144.56,144.54,4.74]
[1728122970592,3.4586,144.56,144.54,15.35]
[1728122970790,10.61,144.59,144.54,15.35]
[1728122970791,2.7352,144.61,144.55,10.61]
[1728122970997,2.7352,144.61,144.57,10.61]
[1728122970998,1.3143,144.61,144.57,10.61]
[1728122971197,91.67024406,144.62,144.58,10.61]
[1728122971703,3.4574,144.61,144.58,10.61]
[1728122971897,91.67024406,144.62,144.58,10.61]
[1728122972096,81.06024406,144.62,144.58,10.61]
[1728122972900,3.4576,144.61,144.58,10.61]
[1728122974704,84.51744406,144.62,144.59,10.61]
[1728122974899,81.06024406,144.62,144.59,10.61]
[1728122976002,3.4574,144.61,144.59,10.61]
[1728122978107,3.4574,144.61,144.6,10.61]
[1728122989418,8.38421258,144.65,144.6,10.61]
[1728122989419,0.12502,144.65,144.6,10.61]
[1728122989625,3.4569,144.63,144.6,18.8475]
[1728122989823,3.4569,144.63,144.61,10.61]
[1728122992521,3.4567,144.64,144.61,14.0673]
[1728122994121,0.12502,144.65,144.61,10.61]
[1728122994320,10.73502,144.65,144.61,10.61]
[1728122995123,10.61,144.64,144.59,10.61]
[1728122995423,10.61,144.64,144.6,4.78]
[1728122995620,3.4569,144.63,144.6,4.78]
[1728122995820,10.61,144.64,144.6,4.78]
[1728122996828,10.73502,144.65,144.6,15.39]
[1728122997529,3.457,144.63,144.6,18.8476]
[1728122998223,10.73502,144.65,144.6,15.39]
[1728122999029,3.4571,144.63,144.6,15.39]
[1728122999426,3.4571,144.63,144.6,18.8476]
[1728123001817,0.12502,144.65,144.6,15.39]
[1728123002729,3.4568,144.64,144.61,3.4573]
[1728123002925,3.4568,144.64,144.62,10.61]
[1728123009741,0.12502,144.65,144.61,6.927]
[1728123009936,3.4571,144.62,144.61,6.927]
[1728123011031,3.4574,144.61,144.6,6.927]
[1728123012137,3.4574,144.61,144.54,11.9251]
[1728123012138,10.61,144.61,144.54,11.9251]
[1728123012336,10.61,144.58,144.54,4.74]
[1728123012735,3.4584,144.57,144.54,4.74]
[1728123016641,3.4584,144.57,144.54,18.809]
[1728123017348,10.61,144.58,144.54,4.74]
[1728123017545,3.4588,144.55,144.54,4.74]
[1728123018147,3.4586,144.56,144.53,17.66202]
[1728123018447,3.4586,144.56,144.53,10.73502]
[1728123019748,3.4586,144.56,144.53,14.19422]
[1728123026153,3.4586,144.56,144.53,10.73502]
[1728123026342,10.61,144.58,144.53,10.73502]
[1728123027861,3.4587,144.56,144.53,10.73502]
[1728123029056,3.4587,144.56,144.54,10.61]
[1728123036462,10.61,144.58,144.54,10.61]
[1728123036655,3.4585,144.57,144.54,14.069]
[1728123037452,6.1246,144.62,144.56,10.61]
[1728123037658,10.61,144.61,144.56,10.61]
[1728123039259,1.3846,144.62,144.56,14.0685]
[1728123039260,3.4579,144.59,144.56,14.0685]
[1728123039756,1.3846,144.62,144.56,10.61]
[1728123040060,1.2977,144.7,144.59,10.61]
[1728123040061,10.61,144.64,144.59,10.61]
[1728123040264,87.24647219,144.65,144.6,10.61]
[1728123040468,3.457,144.63,144.6,10.61]
[1728123041156,3.4571,144.62,144.59,18.8077]
[1728123049572,3.4571,144.63,144.6,10.61]
[1728123052086,3.4572,144.62,144.59,8.1977]
[1728123052273,3.4572,144.62,144.59,18.8077]
[1728123058178,3.4572,144.62,144.6,10.61]
[1728123059681,3.457,144.63,144.6,14.0676]
[1728123060580,3.4568,144.64,144.61,14.0673]
[1728123071992,95.22837219,144.65,144.62,3.4571]
[1728123072197,91.77177219,144.65,144.61,10.61]
[1728123073100,3.4567,144.64,144.61,14.0672]
[1728123074803,3.4567,144.64,144.61,3.4572]
[1728123087613,10.61,144.64,144.6,4.74]
[1728123087813,10.61,144.63,144.6,4.74]
[1728123088205,3.4573,144.62,144.6,4.74]
[1728123090717,3.4573,144.62,144.58,18.8079]
[1728123092821,3.4573,144.62,144.59,10.61]
[1728123093314,3.4573,144.62,144.59,14.0678]
[1728123100714,3.4573,144.62,144.59,18.8078]
[1728123117852,3.4576,144.6,144.59,4.74]
[1728123121950,10.61,144.62,144.57,10.61]
[1728123122151,3.4578,144.59,144.57,10.61]
[1728123123454,10.61,144.62,144.57,10.61]
[1728123123756,3.4577,144.6,144.57,14.0683]
[1728123130452,3.4581,144.58,144.57,4.74]
[1728123131063,10.61,144.6,144.53,4.93662]
[1728123131263,4.74,144.62,144.54,4.74]
[1728123131264,3.4585,144.57,144.54,4.74]
[1728123131763,14.0685,144.57,144.54,8.199]
[1728123132763,3.4585,144.57,144.54,8.199]
[1728123146272,3.4584,144.57,144.54,4.74]
[1728123148377,3.4578,144.6,144.56,10.61]
[1728123148569,10.61,144.61,144.56,10.61]
[1728123149379,3.458,144.59,144.56,14.0684]
[1728123150877,3.458,144.59,144.56,3.4584]
[1728123156483,3.4582,144.58,144.55,14.0688]
[1728123157181,3.4583,144.57,144.55,10.61]
[1728123157582,3.4583,144.57,144.54,8.1989]
[1728123157876,3.4586,144.56,144.54,4.74]
[1728123158877,4.72,144.62,144.53,0.12502]
[1728123158878,3.459,144.54,144.53,0.12502]
[1728123160082,10.61,144.55,144.53,0.12502]
[1728123160279,14.0689,144.55,144.53,0.12502]
[1728123164386,3.459,144.54,144.53,0.12502]
[1728123175097,10.61,144.55,144.53,0.12502]
[1728123175288,14.0689,144.55,144.53,0.12502]
[1728123175492,10.61,144.57,144.53,0.12502]
[1728123176298,3.4587,144.56,144.53,3.58432]
[1728123177303,10.61,144.57,144.53,0.12502]
[1728123177493,10.61,144.57,144.54,3.459]
[1728123177494,14.0684,144.57,144.54,3.459]
[1728123177797,10.61,144.57,144.53,0.12502]
[1728123178000,10.61,144.57,144.53,4.84502]
[1728123178991,3.4586,144.56,144.53,8.30412]
[1728123192508,14.0686,144.56,144.53,8.30412]
[1728123196803,3.51210235,144.58,144.53,15.45502]
[1728123196804,3.4581,144.58,144.53,15.45502]
[1728123197406,3.4581,144.58,144.54,3.4589]
[1728123198102,14.0681,144.58,144.54,3.4589]
[1728123200108,14.0681,144.58,144.55,3.4587]
[1728123200608,10.61,144.56,144.53,4.84502]
[1728123201213,14.0687,144.56,144.53,4.84502]
[1728123201610,10.61,144.56,144.53,8.30412]
[1728123202512,14.0687,144.56,144.53,8.30412]
[1728123207214,10.61,144.56,144.53,8.30412]
[1728123208519,14.0686,144.56,144.53,8.30412]
[1728123215022,3.39776543,144.58,144.53,0.12502]
[1728123215023,14.0688,144.55,144.53,0.12502]
[1728123215223,3.39776543,144.58,144.53,0.12502]
[1728123215224,10.61,144.54,144.53,0.12502]
[1728123215420,10.61,144.55,144.53,0.12502]
[1728123216127,14.0689,144.55,144.53,0.12502]
[1728123219733,3.459,144.54,144.53,0.12502]
[1728123220136,10.61,144.54,144.49,6.917]
[1728123220331,10.61,144.5,144.48,6.917]
[1728123220534,14.0701,144.5,144.47,56.53471087]
[1728123220835,10.61,144.49,144.47,56.53471087]
[1728123221040,10.61,144.48,144.47,0.12502]
[1728123223033,14.0705,144.48,144.47,0.12502]
[1728123231645,14.0703,144.49,144.47,0.12502]
[1728123237140,14.07,144.5,144.47,3.58562]
[1728123239549,10.61,144.5,144.47,0.12502]
[1728123239748,14.0703,144.49,144.47,0.12502]
[1728123249661,10.61,144.48,144.47,0.12502]
[1728123250060,14.0705,144.48,144.47,0.12502]
[1728123250262,17.5944315,144.48,144.47,0.12502]
[1728123253462,6.9844315,144.48,144.47,0.12502]
[1728123253760,17.5944315,144.48,144.47,0.12502]
[1728123257255,17.5944315,144.48,144.44,3.4614]
[1728123257563,10.61,144.46,144.44,3.4614]
[1728123257872,10.61,144.46,144.43,3.4615]
[1728123259466,14.071,144.46,144.43,3.4615]
[1728123260166,10.61,144.46,144.44,3.4614]
[1728123261368,14.0709,144.46,144.44,3.4614]
[1728123262366,14.0709,144.46,144.43,3.4615]
[1728123266675,3.5239315,144.48,144.41,0.12502]
[1728123266676,10.61,144.44,144.41,0.12502]
[1728123266971,14.0719,144.42,144.41,0.12502]
[1728123267160,17.61445228,144.42,144.41,0.12502]
[1728123270169,4.72,144.44,144.41,0.12502]
[1728123270471,3.47674096,144.44,144.41,0.12502]
[1728123271062,14.0713,144.45,144.41,3.58702]
[1728123271877,3.4608,144.47,144.43,3.4615]
[1728123272170,10.61,144.46,144.41,17.65202]
[1728123272371,10.61,144.46,144.42,4.72]
[1728123273374,10.61,144.46,144.43,3.4615]
[1728123273677,14.071,144.46,144.43,3.4615]
[1728123279578,10.61,144.44,144.42,3.4618]
[1728123279774,10.61,144.44,144.41,0.12502]
[1728123280781,14.0716,144.44,144.41,0.12502]
[1728123281377,8.22512252,144.49,144.41,0.12502]
[1728123281686,3.4611,144.46,144.43,3.4616]
[1728123282479,10.61,144.45,144.41,13.42022]
[1728123282679,14.0714,144.45,144.41,4.96842]
[1728123283179,3.4615,144.44,144.41,4.96842]
[1728123283978,14.0715,144.44,144.41,4.96842]
[1728123291987,14.0715,144.44,144.41,3.58712]
[1728123297191,10.61,144.44,144.41,0.12502]
[1728123298286,14.0716,144.44,144.41,3.58712]
[1728123298487,10.61,144.44,144.41,0.12502]
[1728123299594,3.4617,144.43,144.41,0.12502]
[1728123299787,10.61,144.43,144.41,0.12502]
[1728123300196,10.61,144.42,144.41,0.12502]
[1728123300890,14.0719,144.42,144.41,0.12502]
[1728123302394,3.4626,144.4,144.37,4.72]
[1728123302585,10.61,144.38,144.37,4.72]
[1728123304793,10.61,144.38,144.36,3.4632]
[1728123304997,10.61,144.38,144.36,3.4633]
[1728123307797,14.0733,144.37,144.35,0.12502]
[1728123308006,10.61,144.36,144.35,0.12502]
[1728123308506,2.7373,144.41,144.35,0.12502]
[1728123308695,10.61,144.39,144.35,0.12502]
[1728123308891,10.61,144.39,144.35,4.84502]
[1728123309099,10.61,144.39,144.35,15.45502]
[1728123309302,4.72,144.45,144.38,10.61]
[1728123309503,10.61,144.43,144.38,15.33]
[1728123309705,4.72,144.45,144.38,15.33]
[1728123309902,10.61,144.43,144.38,15.33]
[1728123310207,10.61,144.43,144.4,3.4622]
[1728123311402,14.0717,144.43,144.4,3.4622]
[1728123312911,2.7373,144.46,144.39,10.61]
[1728123313111,2.7373,144.46,144.41,10.61]
[1728123313112,10.61,144.46,144.41,10.61]
[1728123313312,10.61,144.46,144.41,15.33]
[1728123314017,10.61,144.46,144.42,3.4618]
[1728123314216,10.61,144.44,144.41,4.72]
[1728123314516,10.61,144.44,144.41,8.1821]
[1728123315422,10.61,144.44,144.41,4.72]
[1728123315615,10.61,144.44,144.42,3.4617]
[1728123315817,10.61,144.44,144.41,4.72]
[1728123316522,10.61,144.44,144.41,8.182]
[1728123318118,14.0714,144.44,144.41,8.182]
[1728123321622,10.61,144.43,144.41,8.182]
[1728123323021,3.4614,144.44,144.41,8.182]
[1728123323022,10.61,144.44,144.41,8.182]
[1728123324423,14.0714,144.44,144.41,8.182]
[1728123331934,10.61,144.44,144.42,3.4618]
[1728123333233,3.4613,144.45,144.42,3.4618]
[1728123333532,10.61,144.44,144.42,3.4618]
[1728123334535,10.61,144.44,144.41,4.72]
[1728123334733,14.0715,144.44,144.41,8.1821]
[1728123338130,10.61,144.44,144.41,8.1821]
[1728123340745,14.0716,144.44,144.41,4.72]
[1728123346751,14.0716,144.44,144.41,8.1821]
[1728123346947,10.61,144.44,144.41,4.72]
[1728123347148,3.4617,144.43,144.41,4.72]
[1728123352052,14.0715,144.44,144.41,4.72]
[1728123354859,3.4615,144.44,144.41,8.1821]
[1728123360371,3.4621,144.41,144.4,4.72]
[1728123360567,10.61,144.42,144.4,4.72]
[1728123360874,14.072,144.42,144.4,4.72]
[1728123362175,2.7115,144.46,144.4,4.72]
[1728123362176,3.4616,144.44,144.4,4.72]
[1728123362374,10.61,144.43,144.4,4.72]
[1728123362580,10.61,144.43,144.4,8.1822]
[1728123363074,14.0719,144.43,144.4,4.72]
[1728123364178,3.4615,144.44,144.41,3.4621]
[1728123364370,10.61,144.45,144.4,15.33]
[1728123364571,10.61,144.45,144.4,4.72]
[1728123364771,3.4617,144.43,144.4,8.1823]
[1728123365882,3.4617,144.43,144.4,4.72]
[1728123368573,3.4618,144.43,144.4,4.72]
[1728123369376,10.61,144.44,144.4,4.72]
[1728123369584,3.462,144.42,144.4,4.72]
[1728123369779,3.462,144.42,144.38,10.61]
[1728123369980,10.61,144.42,144.38,4.72]
[1728123370193,3.4624,144.4,144.38,4.72]
[1728123373991,3.4624,144.4,144.37,14.073]
[1728123374192,3.4624,144.4,144.37,18.793]
[1728123375286,10.61,144.41,144.35,7.04202]
[1728123375597,10.61,144.41,144.37,4.72]
[1728123375598,3.4624,144.4,144.37,4.72]
[1728123378998,3.4624,144.4,144.37,8.1831]
[1728123385700,3.4624,144.4,144.37,3.4631]
[1728123388195,14.0723,144.41,144.38,3.4628]
[1728123389101,3.4618,144.43,144.4,3.4624]
[1728123389602,10.61,144.44,144.4,3.4624]
[1728123389998,14.0716,144.44,144.4,3.4624]
[1728123391103,3.4617,144.43,144.4,3.4624]
[1728123399503,10.61,144.42,144.39,8.1825]
[1728123404504,14.0719,144.42,144.39,8.1825]
[1728123408111,1.3232,144.46,144.37,4.72]